bitfinex-derivatives/quotes_SOLF0:USTF0_20250914
["timestamp","ask_amount","ask_price","bid_price","bid_amount"]
[1757860080612,6.79,243.52,243.44,105.2]
[1757860080820,6.79,243.52,243.42,7.01]
[1757860081010,6.79,243.52,243.41,0.02686481]
[1757860082821,7.11,243.5,243.41,0.02686481]
[1757860083119,4.47853425,243.51,243.37,276.0]
[1757860083319,7.11,243.5,243.23,275.98]
[1757860083520,7.11,243.5,243.3,7.01]
[1757860083818,4.47853425,243.51,243.24,7.01]
[1757860084011,7.11,243.5,243.25,68.88]
[1757860084217,7.11,243.5,243.24,7.01]
[1757860084218,7.11,243.5,243.26,105.28]
[1757860084418,7.11,243.5,243.27,7.01]
[1757860084617,0.02707935,243.4,243.27,7.01]
[1757860084818,7.11,243.39,243.27,7.01]
[1757860085520,0.02707935,243.4,243.27,7.01]
[1757860086115,0.02707935,243.4,243.33,7.01]
[1757860086322,0.02707935,243.4,243.28,4.47853425]
[1757860086323,0.02707935,243.4,243.35,7.01]
[1757860087117,0.02707935,243.4,243.34,105.26]
[1757860087416,0.02707935,243.4,243.34,108.9564]
[1757860087617,0.02707935,243.4,243.35,7.01]
[1757860087818,0.02707935,243.4,243.34,105.26]
[1757860088018,0.02707935,243.4,243.35,7.01]
[1757860088213,0.02707935,243.4,243.32,7.01]
[1757860088516,0.02707935,243.4,243.36,105.24]
[1757860089018,0.02707935,243.4,243.37,7.01]
[1757860089422,0.02707935,243.4,243.36,105.24]
[1757860089621,0.02707935,243.4,243.37,7.01]
[1757860090625,0.02707935,243.4,243.36,105.24]
[1757860091023,0.02707935,243.4,243.3,7.01]
[1757860091319,0.02707935,243.4,243.38,7.01]
[1757860091525,0.02707935,243.4,243.39,105.02]
[1757860092719,0.02707935,243.4,243.39,104.96]
[1757860092920,0.02707935,243.4,243.29,7.01]
[1757860093223,0.02707935,243.4,243.3,94.88]
[1757860093620,0.02707935,243.4,243.31,7.01]
[1757860094620,0.02707935,243.4,243.32,57.94]
[1757860095125,0.02707935,243.4,243.31,7.01]
[1757860095324,0.02707935,243.4,243.32,54.52]
[1757860095522,0.02707935,243.4,243.31,7.01]
[1757860095824,0.02707935,243.4,243.32,104.98]
[1757860096132,0.02707935,243.4,243.33,7.01]
[1757860098621,0.02707935,243.4,243.33,10.7065]
[1757860098823,0.02707935,243.4,243.34,7.01]
[1757860099321,0.02707935,243.4,243.35,3.6962]
[1757860100329,0.02707935,243.4,243.38,2.8338846]
[1757860100523,7.11,243.53,243.39,111.85]
[1757860101828,7.11,243.53,243.4,104.8]
[1757860102022,2.8338846,243.62,243.41,104.8]
[1757860102224,2.8338846,243.57,243.42,34.82]
[1757860102424,7.11,243.55,243.42,34.82]
[1757860102624,2.8338846,243.57,243.42,34.82]
[1757860102826,7.11,243.55,243.42,34.82]
[1757860103030,7.11,243.56,243.42,34.82]
[1757860103226,9.88365895,243.55,243.41,50.94]
[1757860103434,7.11,243.54,243.46,0.02619129]
[1757860105731,1.08807008,243.48,243.46,0.02619129]
[1757860105932,7.11,243.47,243.46,0.02619129]
[1757860107036,1.08807008,243.51,243.46,0.02619129]
[1757860107341,7.11,243.5,243.46,0.02619129]
[1757860108638,7.02,243.5,243.46,0.02619129]
[1757860110030,1.08807008,243.51,243.46,0.02619129]
[1757860110231,7.02,243.5,243.46,0.02619129]
[1757860111039,12.49280772,243.58,243.46,0.02619129]
[1757860111040,7.02,243.47,243.46,0.02619129]
[1757860114942,8.52807008,243.47,243.46,0.02619129]
[1757860115644,7.44,243.47,243.46,0.02619129]
[1757860115946,8.52807008,243.47,243.34,6.44]
[1757860116142,7.02,243.43,243.34,6.44]
[1757860117548,7.02,243.43,243.32,104.56]
[1757860118953,8.10807008,243.43,243.32,104.56]
[1757860119143,7.02,243.43,243.32,104.56]
[1757860119950,7.02,243.43,243.31,6.44]
[1757860120141,7.02,243.43,243.31,111.02]
[1757860120849,1.08807008,243.38,243.3,99.03624898]
[1757860122150,7.02,243.34,243.23,6.44]
[1757860122550,7.02,243.34,243.23,53.16]
[1757860123052,7.02,243.34,243.24,1.08807008]
[1757860123247,8.10807008,243.39,243.28,1.08807008]
[1757860123444,7.02,243.39,243.28,7.52807008]
[1757860124245,7.02,243.39,243.28,6.44]
[1757860124552,7.02,243.37,243.28,6.44]
[1757860124753,7.02,243.37,243.23,7.52807008]
[1757860124958,7.02,243.37,243.23,86.14807008]
[1757860125154,0.02604335,243.35,243.23,86.14807008]
[1757860125347,7.02,243.34,243.23,6.44]
[1757860126147,7.02,243.34,243.17,3.6989]
[1757860126148,1.08807008,243.31,243.17,1.08807008]
[1757860126347,7.02,243.3,243.19,6.44]
[1757860127452,0.02605904,243.27,243.19,6.44]
[1757860128057,7.02,243.26,243.16,1.08807008]
[1757860128258,7.02,243.26,242.96,11.40800085]
[1757860128259,7.02,243.21,243.09,1.08807008]
[1757860128461,7.02,243.21,243.1,6.44]
[1757860128655,7.7,243.38,243.12,1.08807008]
[1757860128847,19.37241638,243.28,243.15,1.08807008]
[1757860129047,19.37241638,243.28,243.16,6.44]
[1757860129252,7.02,243.28,243.2,1.08807008]
[1757860129960,7.02,243.28,243.2,7.52807008]
[1757860130355,7.02,243.28,243.2,1.08807008]
[1757860130657,7.02,243.28,243.17,10.98807008]
[1757860130859,7.02,243.28,243.17,9.9]
[1757860131059,7.02,243.28,243.17,10.98807008]
[1757860131256,7.02,243.28,243.17,9.9]
[1757860131557,7.02,243.28,243.16,6.44]
[1757860131960,7.02,243.28,243.18,1.08807008]
[1757860133553,7.02,243.28,243.16,6.44]
[1757860133861,7.02,243.28,243.18,1.08807008]
[1757860135657,7.02,243.28,243.19,6.45]
[1757860135863,7.02,243.28,243.21,1.08807008]
[1757860136563,1.08807008,243.33,243.21,1.08807008]
[1757860136564,7.77807008,243.33,243.21,1.08807008]
[1757860137864,7.77807008,243.33,243.19,6.45]
[1757860138064,7.77807008,243.33,243.2,1.08807008]
[1757860138563,7.77807008,243.33,243.19,6.45]
[1757860138961,1.08807008,243.3,243.18,49.08807008]
[1757860139154,7.04,243.29,243.18,7.99807008]
[1757860140165,7.04,243.42,243.22,6.91]
[1757860140369,12.32,243.5,243.22,6.91]
[1757860140370,7.04,243.35,243.22,6.91]
[1757860140666,7.04,243.35,243.24,1.08807008]
[1757860141460,7.04,243.35,243.25,6.91]
[1757860141663,0.0261023,243.32,243.12,4.58594004]
[1757860141866,7.04,243.31,243.2,31.07807008]
[1757860142069,7.04,243.31,243.2,72.63807008]
[1757860143166,7.04,243.31,243.2,112.11807008]
[1757860143369,7.04,243.31,243.2,7.99807008]
[1757860143862,7.04,243.31,243.12,6.91]
[1757860144166,8.12807008,243.24,243.12,7.99807008]
[1757860144368,8.12807008,243.24,243.12,6.91]
[1757860146262,1.08807008,243.21,243.06,6.91]
[1757860146464,7.06616207,243.2,243.06,7.99807008]
[1757860147364,1.08807008,243.19,243.06,7.99807008]
[1757860147856,7.04,243.18,243.06,7.99807008]
[1757860148867,1.08807008,243.23,243.1,6.91]
[1757860149566,7.04,243.24,243.1,6.91]
[1757860149567,7.04,243.24,243.12,1.08807008]
[1757860149766,1.08807008,243.23,243.1,7.99807008]
[1757860149967,0.02609057,243.19,243.1,6.91]
[1757860150860,7.06609057,243.19,243.07,1.08807008]
[1757860151061,1.08807008,243.17,243.05,6.91]
[1757860151765,7.04,243.19,243.05,6.91]
[1757860152268,7.04,243.27,243.05,6.91]
[1757860152465,7.04,243.27,243.09,2.84107961]
[1757860152669,7.04,243.27,243.1,6.91]
[1757860155663,7.04,243.27,243.15,6.91]
[1757860157863,7.04,243.27,243.15,42.25]
[1757860158265,7.04,243.27,243.06,6.91]
[1757860158466,2.84107961,243.22,243.06,6.91]
[1757860158763,7.04,243.21,243.06,6.91]
[1757860159158,2.84107961,243.17,242.94,278.98107961]
[1757860159460,7.04,243.16,242.95,108.8623]
[1757860159657,7.04,243.16,242.96,6.91]
[1757860159969,7.04,243.16,242.98,6.91]
[1757860160468,7.04,243.16,242.99,50.42]
[1757860160767,7.04,243.16,243.0,6.91]
[1757860162266,7.04,243.15,242.95,6.91]
[1757860163167,4.48594254,243.1,242.85,6.91]
[1757860163373,7.04,243.09,242.85,6.91]
[1757860163667,7.04,243.09,242.87,6.91]
[1757860165266,7.04,243.09,242.91,6.91]
[1757860165663,276.26,243.17,242.95,3.7022]
[1757860165664,7.04,243.15,242.95,3.7022]
[1757860165870,7.04,243.15,242.97,6.91]
[1757860166969,7.04,243.22,242.98,6.91]
[1757860167167,7.04,243.22,242.99,6.91]
[1757860167572,7.04,243.22,243.01,6.91]
[1757860168474,6.72,243.19,243.01,6.91]
[1757860169372,4.48594254,243.2,242.98,276.32]
[1757860169674,4.48594254,243.15,242.98,276.32]
[1757860169874,6.72,243.14,242.98,276.32]
[1757860170174,6.72,243.14,242.96,6.58]
[1757860171870,0.02599648,243.07,242.96,6.58]
[1757860174171,0.02599648,243.07,242.96,11.06594254]
[1757860174478,0.02599648,243.07,242.97,6.58]
[1757860174876,6.72,243.16,243.06,4.48594254]
[1757860175177,6.72,243.22,243.07,6.58]
[1757860177583,6.72,243.22,243.12,0.02647773]
[1757860178077,142.24615695,243.23,243.01,11.06594254]
[1757860178282,142.24615695,243.23,242.96,11.06594254]
[1757860178479,6.72,243.22,242.96,11.06594254]
[1757860178679,142.24615695,243.23,242.96,11.06594254]
[1757860178881,6.72,243.22,242.96,11.06594254]
[1757860179181,11.20594254,243.21,242.96,11.06594254]
[1757860179380,6.72,243.2,242.96,6.58]
[1757860179586,6.72,243.18,242.96,6.58]
[1757860180280,6.72,243.15,242.96,6.58]
[1757860181675,6.72,243.13,242.96,6.58]
[1757860183383,0.02598508,243.07,242.96,6.58]
[1757860191882,6.72,243.06,242.87,6.58]
[1757860192084,6.72,243.06,242.88,6.58]
[1757860192780,19.07866279,243.06,242.88,6.58]
[1757860192987,0.02603459,242.99,242.88,6.58]
[1757860193589,6.63,242.98,242.88,6.58]
[1757860194287,6.63,242.98,242.82,6.77]
[1757860195283,11.32,242.97,242.77,276.38]
[1757860195489,11.32,242.97,242.77,283.15]
[1757860195688,6.63,242.96,242.77,283.15]
[1757860195989,14.26,242.96,242.77,283.15]
[1757860196190,6.63,242.95,242.77,283.15]
[1757860196488,14.26,242.96,242.77,283.15]
[1757860196689,4.48594254,243.01,242.77,283.15]
[1757860196893,6.63,242.99,242.78,6.77]
[1757860197891,6.94,242.97,242.78,6.77]
[1757860198288,13.42,242.96,242.78,6.77]
[1757860198493,6.94,242.95,242.78,6.77]
[1757860201698,7.65656543,243.03,242.83,7.11]
[1757860201900,6.94,243.03,242.85,7.11]
[1757860202105,0.02602667,242.89,242.85,106.0]
[1757860202304,6.94,242.95,242.79,7.11]
[1757860203802,6.94,242.95,242.8,106.02]
[1757860204107,6.94,242.95,242.81,7.11]
[1757860208199,6.94,242.97,242.77,276.38]
[1757860208504,16.58,242.96,242.78,7.11]
[1757860208699,6.94,242.97,242.78,7.11]
[1757860208905,36.94,242.97,242.78,7.11]
[1757860210307,0.02600423,242.9,242.78,7.11]
[1757860212105,6.94,242.89,242.78,7.11]
[1757860214508,6.94,242.89,242.64,62.0]
[1757860214714,6.94,242.89,242.65,7.11]
[1757860214911,6.94,242.89,242.67,7.11]
[1757860217217,6.94,242.91,242.68,7.11]
[1757860218315,6.94,242.89,242.68,7.11]
[1757860221713,2.84740579,242.98,242.72,9.95740579]
[1757860221918,6.94,242.97,242.73,7.11]
[1757860223519,6.94,242.97,242.75,7.11]
[1757860223718,6.94,242.97,242.77,7.11]
[1757860224209,6.94,242.97,242.77,2.84740579]
[1757860224409,6.94,242.97,242.79,3.7047]
[1757860224612,6.94,243.03,242.83,7.11]
[1757860226814,6.94,243.03,242.86,7.11]
[1757860227010,6.94,243.03,242.88,7.11]
[1757860227210,6.94,243.08,242.88,7.11]
[1757860227519,6.94,243.08,242.9,2.84740579]
[1757860227719,6.94,243.08,242.91,7.11]
[1757860228217,6.96,243.13,242.91,7.11]
[1757860228521,6.96,243.13,242.93,7.1]
[1757860228819,6.96,243.13,242.92,2.84740579]
[1757860228820,6.96,243.13,242.95,7.1]
[1757860230319,6.96,243.26,243.03,7.1]
[1757860230514,2.84740579,243.24,243.03,7.1]
[1757860230721,6.96,243.23,243.03,7.1]
[1757860231422,6.96,243.23,243.06,2.84740579]
[1757860231622,6.96,243.23,243.07,7.1]
[1757860231815,0.71577692,243.3,243.07,7.1]
[1757860232018,12.09583835,243.31,243.12,7.1]
[1757860232214,6.96,243.33,243.12,7.1]
[1757860232413,6.96,243.33,243.13,7.1]
[1757860232621,2.84740579,243.31,243.13,7.1]
[1757860232923,6.96,243.3,243.13,7.1]
[1757860234620,6.96,243.3,243.15,7.1]
[1757860235015,6.96,243.3,243.17,7.1]
[1757860235713,6.96,243.35,243.17,7.1]
[1757860236212,0.71539434,243.43,243.17,7.1]
[1757860236415,0.71539434,243.43,243.2,7.1]
[1757860236416,7.67539434,243.43,243.2,7.1]
[1757860236714,6.96,243.43,243.21,6.98]
[1757860236922,6.96,243.43,243.25,7.1]
[1757860237218,6.96,243.43,243.27,7.1]
[1757860238014,6.96,243.43,243.27,14.44]
[1757860238217,6.96,243.43,243.28,7.1]
[1757860238417,19.98549351,243.48,243.29,14.14]
[1757860238719,7.67523995,243.48,243.28,25.04]
[1757860238923,6.96,243.48,243.29,7.1]
[1757860239419,6.96,243.48,243.3,8.88]
[1757860239619,6.96,243.48,243.2,15.74061249]
[1757860239620,6.96,243.48,243.31,7.1]
[1757860239823,6.96,243.42,243.26,7.1]
[1757860242028,9.80740579,243.48,243.26,7.1]
[1757860242223,0.02619918,243.36,243.26,7.1]
[1757860242427,6.96,243.55,243.29,7.1]
[1757860242627,6.96,243.55,243.34,7.1]
[1757860243620,2.84740579,243.58,243.34,7.1]
[1757860243826,2.84740579,243.6,243.35,72.4]
[1757860244127,2.84740579,243.6,243.37,7.1]
[1757860244324,6.96,243.59,243.37,7.1]
[1757860244727,6.96,243.59,243.46,0.02640569]
[1757860248225,0.71468912,243.65,243.46,0.02640569]
[1757860248426,2.84740579,243.63,243.46,0.02640569]
[1757860248630,2.84740579,243.63,243.45,7.1]
[1757860249728,6.96,243.62,243.45,7.1]
[1757860251133,6.96,243.67,243.45,7.1]
[1757860251325,6.96,243.67,243.51,0.02607168]
[1757860251523,6.96,243.67,243.52,7.1]
[1757860251926,12.32,243.8,243.52,7.1]
[1757860251927,6.96,243.79,243.52,7.1]
[1757860252130,2.84740579,243.76,243.53,26.32]
[1757860252436,6.96,243.75,243.63,0.02697633]
[1757860252929,0.71432237,243.77,243.64,7.1]
[1757860253232,6.96,243.78,243.64,7.1]
[1757860253624,6.96,243.78,243.3,2.84740579]
[1757860253625,6.96,243.73,243.55,7.1]
[1757860253933,2.84740579,243.72,243.55,7.1]
[1757860254122,6.96,243.71,243.55,7.1]
[1757860255927,6.96,243.71,243.61,0.02684763]
[1757860259037,6.76,243.76,243.62,6.66]
[1757860259643,2.84740579,243.77,243.49,2.84740579]
[1757860259941,6.76,243.76,243.51,6.66]
[1757860260131,6.76,243.76,243.62,6.66]
[1757860260844,6.76,243.73,243.55,6.66]
[1757860261044,6.76,243.67,243.55,6.66]
[1757860261643,2.84740579,243.7,243.55,6.66]
[1757860262337,2.84740579,243.7,243.6,0.02605951]
[1757860262543,6.76,243.69,243.6,0.02605951]
[1757860263639,6.76,243.64,243.49,6.66]
[1757860263842,6.76,243.59,243.42,6.66]
[1757860264043,6.76,243.59,243.42,54.38]
[1757860264243,6.76,243.59,243.42,112.86]
[1757860264636,2.84740579,243.55,243.42,6.66]
[1757860264837,6.76,243.54,243.42,6.66]
[1757860267642,9.60740579,243.5,243.33,6.66]
[1757860267841,6.76,243.5,243.35,6.66]
[1757860268045,2.84740579,243.54,243.35,6.66]
[1757860268241,2.84740579,243.61,243.35,6.66]
[1757860268547,2.84740579,243.61,243.34,106.14]
[1757860268548,6.76,243.6,243.39,6.66]
[1757860268943,6.76,243.55,243.39,6.66]
[1757860269541,6.76,243.55,243.39,112.94]
[1757860270438,6.76,243.55,243.4,6.66]
[1757860271037,2.84740579,243.61,243.4,6.66]
[1757860271646,6.76,243.62,243.43,6.66]
[1757860272445,6.76,243.69,243.43,6.66]
[1757860272639,6.76,243.69,243.47,2.84740579]
[1757860272845,6.76,243.69,243.48,6.66]
[1757860273045,6.76,243.69,243.5,6.66]
[1757860273550,2.84740579,243.65,243.5,6.66]
[1757860273745,6.76,243.64,243.5,6.66]
[1757860277748,0.02591999,243.59,243.5,6.66]
[1757860278345,6.78591999,243.59,243.43,6.66]
[1757860278550,6.78591999,243.59,243.44,49.78]
[1757860278751,6.76,243.59,243.43,6.66]
[1757860280749,9.60740579,243.59,243.43,6.66]
[1757860281753,6.76,243.58,243.38,6.66]
[1757860281953,4.47248605,243.6,243.38,56.74]
[1757860282354,6.76,243.59,243.38,56.74]
[1757860282755,4.47248605,243.6,243.38,56.74]
[1757860282954,6.76,243.59,243.38,6.66]
[1757860283156,6.76,243.59,243.38,112.56]
[1757860283351,4.47248605,243.6,243.38,112.56]
[1757860283556,4.47248605,243.55,243.38,6.66]
[1757860283752,6.76,243.54,243.38,6.66]
[1757860284458,18.91581115,243.54,243.38,6.66]
[1757860284659,6.76,243.54,243.38,6.66]
[1757860285658,6.76,243.54,243.32,275.84]
[1757860285864,6.76,243.49,243.3,6.66]
[1757860286455,6.76,243.47,243.3,6.66]
[1757860287361,6.76,243.47,243.24,7.0]
[1757860287564,6.76,243.43,243.24,7.0]
[1757860287765,6.76,243.43,243.25,6.66]
[1757860289667,16.56970831,243.54,243.25,6.66]
[1757860289668,6.44,243.53,243.25,6.66]
[1757860289869,6.44,243.53,243.26,6.91]
[1757860290066,6.44,243.53,243.29,6.91]
[1757860290569,6.44,243.53,243.34,6.91]
[1757860290768,6.44,243.53,243.36,6.91]
[1757860292470,6.44,243.53,243.37,49.6]
[1757860292668,6.44,243.53,243.38,6.91]
[1757860293473,282.32,243.59,243.38,6.91]
[1757860294061,6.44,243.59,243.38,11.38248605]
[1757860294270,6.44,243.59,243.39,6.91]
[1757860294474,6.44,243.59,243.4,63.54]
[1757860295465,6.44,243.59,243.39,6.91]
[1757860307676,6.44,243.59,243.39,3.6956]
[1757860307878,6.44,243.59,243.4,6.91]
[1757860308383,6.44,243.59,243.42,6.91]
[1757860317887,6.44,243.59,243.43,105.52]
[1757860318093,6.44,243.59,243.44,6.64]
[1757860319793,0.02588687,243.54,243.44,6.64]
[1757860323093,0.02588687,243.54,243.44,111.92]
[1757860324595,0.02588687,243.54,243.44,6.64]
[1757860326304,6.56,243.53,243.4,57.56]
[1757860326993,6.56,243.53,243.4,6.64]
[1757860327393,4.47248605,243.52,243.33,282.6]
[1757860327603,6.56,243.51,243.33,6.64]
[1757860330400,6.56,243.51,243.27,14.08]
[1757860330599,54.87248605,243.52,243.27,14.08]
[1757860330797,6.56,243.51,243.27,14.08]
[1757860330999,4.47248605,243.47,243.27,14.08]
[1757860331198,6.56,243.46,243.27,14.08]
[1757860331393,4.47248605,243.47,243.27,14.08]
[1757860331604,6.56,243.46,243.27,14.08]
[1757860331797,4.47248605,243.47,243.27,14.08]
[1757860331995,6.56,243.46,243.26,6.64]
[1757860333101,6.56,243.46,243.27,4.47248605]
[1757860333301,51.68,243.55,243.33,6.64]
[1757860333602,6.56,243.55,243.33,6.64]
[1757860334198,0.02588121,243.46,243.34,6.64]
[1757860334403,0.02588121,243.46,243.36,6.64]
[1757860337597,0.02588121,243.46,243.37,11.11248605]
[1757860337796,0.02588121,243.46,243.38,6.64]
[1757860340411,6.56,243.45,243.32,4.58594004]
[1757860340706,6.56,243.45,243.31,6.64]
[1757860341108,6.56,243.5,243.29,275.96]
[1757860341299,7.08,243.51,243.29,275.96]
[1757860341500,6.56,243.41,243.26,4.58594004]
[1757860341803,6.56,243.41,243.19,6.64]
[1757860341804,13.12,243.41,243.19,11.22594004]
[1757860342001,6.56,243.35,243.16,4.58594004]
[1757860342203,4.47248605,243.36,243.15,111.9]
[1757860342404,6.56,243.35,243.15,6.64]
[1757860342603,4.47248605,243.3,243.13,275.96]
[1757860343106,6.56,243.29,243.13,275.96]
[1757860343502,6.56,243.29,243.09,6.64]
[1757860343703,2.84160138,243.23,243.09,6.64]
[1757860343914,6.56,243.22,243.09,6.64]
[1757860344499,2.84160138,243.23,243.0,6.64]
[1757860344704,6.56,243.22,243.01,105.4]
[1757860344907,2.84160138,243.23,243.01,105.4]
[1757860345209,6.56,243.22,243.01,105.4]
[1757860345611,6.56,243.22,243.0,6.64]
[1757860345612,6.56,243.17,243.0,6.64]
[1757860347807,6.56,243.17,243.0,112.04]
[1757860348704,6.56,243.17,243.0,6.64]
[1757860349208,12.5271229,243.29,243.01,2.84160138]
[1757860349509,6.64,243.28,243.14,6.65]
[1757860349807,6.64,243.28,243.14,112.11]
[1757860350510,6.64,243.28,243.18,2.84160138]
[1757860350806,6.64,243.35,243.19,6.65]
[1757860353913,6.64,243.35,243.23,2.84160138]
[1757860354109,6.64,243.35,243.23,9.49160138]
[1757860356607,6.64,243.35,243.18,31.01160138]
[1757860357010,6.64,243.35,243.18,28.17]
[1757860357209,6.64,243.35,243.18,31.01160138]
[1757860357916,6.64,243.35,243.19,6.65]
[1757860358414,6.64,243.35,243.18,2.84160138]
[1757860358714,6.64,243.39,243.15,6.65]
[1757860362708,6.64,243.39,243.2,6.65]
[1757860365514,6.64,243.39,243.21,9.04]
[1757860365810,2.84160138,243.39,243.2,6.65]
[1757860366017,6.64,243.38,243.2,6.65]
[1757860369816,6.64,243.38,243.21,6.65]
[1757860371010,6.64,243.38,243.22,6.65]
[1757860373825,6.64,243.38,243.22,77.95]
[1757860374622,6.64,243.38,243.22,111.81]
[1757860375224,6.64,243.38,243.22,6.65]
[1757860375418,6.64,243.38,243.22,48.61]
[1757860375614,6.64,243.38,243.22,88.47]
[1757860376722,6.64,243.38,243.23,6.68]
[1757860382524,6.94,243.4,243.23,56.66]
[1757860383019,6.94,243.4,243.23,6.68]
[1757860384329,6.94,243.4,243.23,10.3781]
[1757860384534,6.94,243.4,243.24,6.86]
[1757860385526,6.94,243.4,243.26,6.86]
[1757860386339,6.94,243.4,243.28,6.86]
[1757860393331,6.94,243.4,243.21,6.86]
[1757860393532,2.84160138,243.42,243.21,6.86]
[1757860393533,2.84160138,243.42,243.21,111.96]
[1757860393734,1.08955043,243.33,243.21,111.96]
[1757860395441,1.08955043,243.33,243.21,6.86]
[1757860395636,6.94,243.32,243.21,58.86]
[1757860399844,6.94,243.32,243.22,6.86]
[1757860400544,6.94,243.37,243.23,4.58594004]
[1757860400747,6.94,243.37,243.25,6.86]
[1757860400937,2.83784872,243.43,243.25,6.86]
[1757860400938,6.94,243.42,243.25,6.86]
[1757860401140,6.94,243.42,243.25,62.44]
[1757860401339,6.94,243.42,243.26,6.86]
[1757860401938,6.94,243.42,243.26,8.28354004]
[1757860402145,6.94,243.42,243.28,4.58594004]
[1757860402342,6.94,243.42,243.29,6.86]
[1757860402846,6.94,243.42,243.3,6.86]
[1757860409152,6.55,243.45,243.26,105.02]
[1757860409451,6.55,243.46,243.28,6.54]
[1757860417860,6.49,243.43,243.28,6.54]
[1757860427268,6.49,243.43,243.28,11.12594004]
[1757860427472,6.49,243.43,243.29,6.98]
[1757860427965,6.49,243.39,243.25,11.56594004]
[1757860428165,1.70134717,243.36,243.25,6.98]
[1757860428372,6.49,243.35,243.25,6.98]
[1757860430270,1.70134717,243.32,243.21,6.98]
[1757860430470,6.49,243.31,243.21,6.98]
[1757860432561,6.49,243.31,243.19,4.58594004]
[1757860432762,6.49,243.28,243.17,6.98]
[1757860434374,1.70134717,243.25,243.12,6.98]
[1757860434564,6.49,243.24,243.12,6.98]
[1757860435869,18.75939763,243.24,243.06,4.58594004]
[1757860436170,7.08,243.2,243.07,55.65]
[1757860436765,7.08,243.2,243.07,6.81]
[1757860439975,6.75,243.16,243.03,6.58]
[1757860443579,6.75,243.16,243.03,111.46]
[1757860443774,1.70134717,243.17,243.03,111.46]
[1757860443978,6.75,243.16,243.03,111.46]
[1757860445585,6.75,243.12,242.97,111.46]
[1757860445889,1.70134717,243.13,242.97,111.46]
[1757860446379,6.75,243.12,242.97,6.58]
[1757860446575,6.75,243.2,242.97,6.58]
[1757860446781,6.75,243.08,242.97,6.58]
[1757860447684,8.45134717,243.12,242.97,6.58]
[1757860447988,6.75,243.12,242.98,6.58]
[1757860449889,6.75,243.16,243.02,6.58]
[1757860451089,8.45134717,243.16,243.02,6.58]
[1757860452093,1.70134717,243.12,243.02,6.58]
[1757860452294,6.75,243.11,243.02,6.58]
[1757860453196,6.75,243.11,242.97,6.58]
[1757860460198,11.6,243.15,242.97,6.58]
[1757860460199,6.75,243.07,242.97,6.58]
[1757860460496,6.75,243.03,242.86,6.58]
[1757860461495,6.75,242.99,242.86,6.58]
[1757860463491,405.06695256,243.11,242.92,1.70134717]
[1757860463696,405.06695256,243.11,242.96,1.70134717]